bitfinex/quotes_ETHUSD_20241104
["timestamp","ask_amount","ask_price","bid_price","bid_amount"]
[1730734299335,0.55,2448.3,2447.6,0.8237]
[1730734299336,4.08498,2448.0,2447.6,0.8237]
[1730734299492,4.08538,2447.8,2447.6,0.8237]
[1730734299693,4.08516,2447.9,2447.6,0.8237]
[1730734299890,8.17038,2447.9,2447.6,0.8237]
[1730734300442,4.08516,2447.9,2447.6,0.8237]
[1730734300642,4.08493,2448.1,2447.6,4.9093]
[1730734300799,4.59540037,2448.0,2447.6,0.8237]
[1730734301348,4.59540037,2448.0,2447.5,8.17149]
[1730734301349,8.70642179,2447.7,2447.0,0.8057]
[1730734301498,4.0868,2446.9,2446.8,0.7957]
[1730734301699,4.08663,2447.1,2446.4,4.8832]
[1730734301907,4.08658,2447.1,2446.5,4.08736]
[1730734302108,4.08674,2447.0,2446.5,4.08736]
[1730734302533,4.08688,2446.9,2446.4,4.88333]
[1730734302738,8.17381,2446.9,2446.4,4.88333]
[1730734302892,8.17383,2446.9,2446.4,4.88333]
[1730734303098,4.08697,2446.8,2446.4,4.88333]
[1730734303397,4.08697,2446.8,2446.4,0.7957]
[1730734303639,4.08688,2446.9,2446.4,4.88331]
[1730734303936,8.17381,2446.9,2446.4,4.88331]
[1730734304140,8.17377,2446.9,2446.4,4.88331]
[1730734304341,4.08688,2446.9,2446.4,4.88331]
[1730734304494,4.087,2446.8,2446.4,0.7957]
[1730734305325,8.17379,2446.9,2446.4,4.88319]
[1730734305496,4.08697,2446.8,2446.4,4.88319]
[1730734305840,4.08697,2446.8,2446.4,0.7957]
[1730734308516,4.08716,2446.7,2446.4,0.7957]
[1730734308746,4.08731,2446.6,2446.4,0.7957]
[1730734308947,4.904748,2446.6,2446.4,0.7957]
[1730734309345,4.08747,2446.5,2446.4,0.7957]
[1730734309868,4.904748,2446.6,2445.8,0.7647]
[1730734309869,4.08801,2446.2,2445.8,0.7647]
[1730734310080,4.08835,2446.0,2445.8,0.7647]
[1730734310839,8.17678,2446.0,2445.8,0.7647]
[1730734311148,4.906028,2446.0,2445.6,4.08897]
[1730734311470,4.08835,2446.0,2445.6,4.08897]
[1730734312506,4.08817,2446.1,2445.6,4.08885]
[1730734312834,4.08833,2446.0,2445.6,4.08885]
[1730734313169,4.08817,2446.1,2445.6,4.08895]
[1730734313833,4.08834,2446.0,2445.5,8.21049133]
[1730734314028,0.8181,2446.4,2445.6,4.08894]
[1730734314359,4.08816,2446.1,2445.6,4.08894]
[1730734314558,4.08818,2446.1,2445.6,8.17779]
[1730734315073,4.08837,2446.0,2445.6,4.08885]
[1730734315371,4.08818,2446.1,2445.6,8.17771]
[1730734315573,4.08818,2446.1,2445.6,4.08885]
[1730734315873,8.17646,2446.1,2445.6,4.08885]
[1730734316072,4.08832,2446.0,2445.6,4.08885]
[1730734316309,4.08818,2446.1,2445.6,4.08885]
[1730734316495,4.08818,2446.1,2445.6,8.17773]
[1730734317116,4.08724,2446.7,2445.8,0.8326]
[1730734317324,1.23207127,2447.0,2446.3,4.0878]
[1730734317325,4.08712,2446.8,2446.3,4.0878]
[1730734317609,4.08743,2446.6,2446.2,0.8227]
[1730734317820,4.08776,2446.4,2446.1,0.23187661]
[1730734317973,4.08821,2446.1,2446.0,0.2318975]
[1730734318174,4.08821,2446.1,2445.9,0.8227]
[1730734318967,4.08799,2446.2,2445.9,0.8227]
[1730734320179,4.08815,2446.1,2445.9,0.8227]
[1730734320516,4.08824,2446.1,2445.9,0.8227]
[1730734320920,4.08824,2446.1,2445.5,3.76059236]
[1730734320921,4.08857,2445.9,2445.5,3.76059236]
[1730734321104,4.08839,2446.0,2445.5,7.42299133]
[1730734321305,4.08825,2446.1,2445.6,4.08889]
[1730734321504,4.08823,2446.1,2445.6,4.08889]
[1730734321888,0.55,2446.2,2445.6,4.17066837]
[1730734322091,0.55,2446.2,2445.5,3.33397133]
[1730734322092,0.829,2446.8,2445.9,4.08846]
[1730734322398,4.08756,2446.5,2445.9,4.08831]
[1730734322579,4.08756,2446.5,2446.0,4.08829]
[1730734322788,4.08781,2446.3,2445.9,4.08831]
[1730734323015,4.905033,2446.5,2445.9,4.08831]
[1730734323184,4.905033,2446.5,2446.0,4.08821]
[1730734323400,4.08768,2446.4,2445.9,4.08836]
[1730734324145,4.08786,2446.3,2445.8,4.08864]
[1730734324905,4.9871633,2446.3,2445.7,4.86846]
[1730734325211,4.08806,2446.2,2445.7,4.86846]
[1730734325412,4.08786,2446.3,2445.8,4.08856]
[1730734325943,4.08786,2446.3,2445.9,4.08846]
[1730734326156,4.08757,2446.5,2445.8,4.08859]
[1730734326451,4.08789,2446.3,2445.8,4.08859]
[1730734326802,4.08771,2446.4,2445.9,4.08846]
[1730734327135,8.17545,2446.4,2445.9,4.08846]
[1730734327448,4.08771,2446.4,2445.9,4.08846]
[1730734328008,8.17549,2446.4,2445.9,4.08846]
[1730734328311,8.17549,2446.4,2446.0,0.23252059]
[1730734328503,4.08785,2446.3,2445.8,4.08859]
[1730734328723,4.0883,2446.0,2445.9,0.23252722]
[1730734328905,4.63798,2446.2,2445.7,4.86852]
[1730734329333,4.63798,2446.2,2445.8,0.23274779]
[1730734329535,4.63798,2446.2,2445.7,4.86852]
[1730734329536,8.17639,2446.1,2445.7,0.7798]
[1730734329845,4.63798,2446.2,2445.8,0.23274397]
[1730734330147,4.63798,2446.2,2445.9,0.23274397]
[1730734330356,4.63798,2446.2,2445.7,4.86858]
[1730734330538,4.63798,2446.2,2445.8,0.2327492]
[1730734330739,4.63798,2446.2,2445.9,0.2327492]
[1730734330905,4.63798,2446.2,2445.7,4.86858]
[1730734331110,0.76,2446.4,2445.8,0.2327463]
[1730734331111,4.0877,2446.4,2445.8,0.2327463]
[1730734331419,4.08771,2446.4,2445.9,4.69401533]
[1730734331564,4.08771,2446.4,2446.0,0.2327463]
[1730734331791,0.55,2446.6,2445.5,3.76061935]
[1730734331792,0.55,2446.6,2446.2,0.7807]
[1730734332077,0.55,2446.6,2446.1,0.2327463]
[1730734332078,4.0863,2447.2,2446.6,0.7807]
[1730734332228,4.983349,2447.2,2446.7,4.32010402]
[1730734332427,4.08657,2447.1,2446.8,0.23293042]
[1730734332741,4.08657,2447.1,2446.6,4.86797]
[1730734332742,0.896969,2447.2,2446.9,4.08676]
[1730734333050,4.0858,2447.5,2447.0,0.23294555]
[1730734333359,4.08655,2447.1,2446.7,0.37262514]
[1730734333564,4.08665,2447.0,2446.8,0.23288892]
[1730734333782,4.08685,2446.9,2446.6,0.7807]
[1730734333933,4.08699,2446.8,2446.7,0.2329132]
[1730734334132,0.9003,2446.9,2446.4,0.37272199]
[1730734334133,4.08747,2446.5,2446.4,0.37272199]
[1730734334435,9.00421,2446.6,2446.1,0.37272061]
[1730734334769,0.55,2446.7,2446.2,4.6936606]
[1730734334923,4.63714,2446.7,2446.3,0.23295412]
[1730734335125,5.273214,2446.7,2446.2,4.08796]
[1730734335473,0.55,2446.7,2446.3,0.60571584]
[1730734335627,0.55,2446.7,2446.4,0.23296162]
[1730734335975,0.55,2446.7,2446.5,0.23296801]
[1730734336158,0.55,2446.7,2446.3,4.4604664]
[1730734336331,0.55,2446.7,2446.3,4.0877]
[1730734336526,0.55,2446.7,2446.4,0.23340379]
[1730734336758,4.63721,2446.7,2446.1,8.17607]
[1730734336957,4.63721,2446.7,2446.2,0.60689236]
[1730734337176,4.63721,2446.7,2446.3,0.23341327]
[1730734337379,4.63721,2446.7,2446.4,0.23341327]
[1730734337380,5.681997,2446.7,2446.4,0.23341327]
[1730734337666,5.681997,2446.7,2446.2,4.46146554]
[1730734337869,5.681997,2446.7,2446.3,0.23344914]
[1730734338066,5.681997,2446.7,2446.2,4.08793]
[1730734338374,5.681997,2446.7,2446.3,0.23346633]
[1730734338573,5.681997,2446.7,2446.4,0.23346633]
[1730734338941,0.819,2447.0,2446.4,4.08757]
[1730734339093,4.08681,2446.9,2446.5,1.01397309]
[1730734339245,0.819,2447.0,2446.5,0.7805]
[1730734339451,0.819,2447.0,2446.5,4.86788]
[1730734339651,4.90565,2447.0,2446.6,0.23348512]
[1730734339882,4.90565,2447.0,2446.5,0.7805]
[1730734339883,5.804862,2447.0,2446.5,0.7805]
[1730734340191,5.804862,2447.0,2446.2,0.7857]
[1730734340192,4.63722,2446.7,2446.2,0.7857]
[1730734340406,0.55,2446.8,2446.3,0.23348398]
[1730734340709,5.804962,2447.0,2446.4,4.32103398]
[1730734340850,5.804942,2447.0,2446.5,0.23348398]
[1730734341189,5.804942,2447.0,2446.4,4.08755]
[1730734341371,5.804942,2447.0,2446.5,0.23347038]
[1730734341689,5.804942,2447.0,2446.3,4.0878]
[1730734341690,4.63707,2446.8,2446.3,4.0878]
[1730734341845,0.55,2446.8,2446.4,4.32111178]
[1730734342050,0.55,2446.8,2446.4,4.08763]
[1730734342489,0.5804942,2446.9,2446.4,4.08763]
[1730734342878,0.5804942,2446.9,2446.5,0.23347444]
[1730734343088,0.5804942,2446.9,2446.4,4.08763]
[1730734343391,4.6673142,2446.9,2446.4,4.08763]
[1730734343596,0.5804942,2446.9,2446.5,4.08745]
[1730734343752,0.5804942,2446.9,2446.4,4.08763]
[1730734344088,4.6673742,2446.9,2446.4,4.08763]
[1730734344649,4.63721,2446.7,2446.2,0.7857]
[1730734344946,4.63721,2446.7,2446.3,0.23349567]
[1730734345156,4.63721,2446.7,2446.2,0.7857]
[1730734345384,4.63721,2446.7,2446.3,0.23353242]
[1730734345547,4.63721,2446.7,2446.2,0.7857]
[1730734345750,5.66341786,2446.7,2446.3,0.23353192]
[1730734345991,1.57620786,2446.7,2446.2,4.87359]
[1730734346190,1.57620786,2446.7,2446.3,0.23352575]
[1730734346349,5.66342786,2446.7,2446.2,0.7857]
[1730734346852,5.66342786,2446.7,2446.3,0.23355001]
[1730734347050,5.66342786,2446.7,2446.2,4.87357]
[1730734347387,5.66342786,2446.7,2446.3,0.23356154]
[1730734347550,5.66342786,2446.7,2446.4,0.233547]
[1730734347750,5.66342786,2446.7,2446.2,0.7857]
[1730734347989,1.57620786,2446.7,2446.3,4.32132566]
[1730734348192,1.57620786,2446.7,2446.4,0.23353566]
[1730734348378,1.57620786,2446.7,2446.2,4.87365]
[1730734348580,5.66336786,2446.7,2446.3,0.2335346]
[1730734348764,5.66336786,2446.7,2446.2,4.87365]
[1730734348965,4.08734,2446.6,2446.3,0.2335471]
[1730734349166,0.7807,2446.1,2445.5,4.13227133]
[1730734349384,4.08877,2445.8,2445.5,3.33397133]
[1730734349569,4.0888,2445.7,2445.5,4.61201589]
[1730734349775,1.3307,2445.7,2445.5,3.33397133]
[1730734350701,2.281492,2445.7,2445.5,3.33397133]
[1730734350877,0.7807,2445.7,2445.5,3.33397133]
[1730734351224,0.55,2445.9,2445.5,7.42310133]
[1730734351523,4.63848,2445.9,2445.5,7.42310133]
[1730734351895,4.63848,2445.9,2445.5,3.33397133]
[1730734352220,0.55,2445.9,2445.6,4.08897]
[1730734352422,0.55,2445.9,2445.6,8.17785]
[1730734352628,2.46911244,2446.3,2445.5,3.33397133]
[1730734352786,4.86277,2446.3,2445.8,4.08861]
[1730734352981,1.06446224,2446.2,2445.8,4.0885]
[1730734353186,1.06446224,2446.2,2445.9,4.08833]
[1730734353521,0.7749,2446.3,2445.9,4.08833]
[1730734353724,0.8192,2446.5,2446.1,4.08806]
[1730734353881,0.8192,2446.5,2446.0,4.08829]
[1730734354081,0.8192,2446.5,2446.1,4.08805]
[1730734354421,0.75757682,2446.4,2446.1,4.08805]
[1730734354622,2.66924823,2446.6,2446.2,4.08785]
[1730734354623,0.97503579,2446.6,2446.2,4.08785]
[1730734354779,0.97503579,2446.6,2446.4,4.08756]
[1730734354979,1.84540786,2446.7,2446.4,4.08756]
[1730734355176,1.84540786,2446.7,2446.4,4.08755]
[1730734355379,1.69421244,2447.0,2446.6,4.08717]
[1730734355608,6.59789244,2447.1,2446.6,4.08717]
[1730734355917,6.59789244,2447.1,2446.4,0.785]
[1730734355918,0.8171,2447.1,2446.8,4.08686]
[1730734356454,0.77,2447.3,2446.8,4.08685]
[1730734356892,0.77,2447.3,2446.8,4.08696]
[1730734356893,4.85615,2447.3,2446.8,4.08696]
[1730734357414,0.55,2447.2,2446.8,4.08696]
[1730734357734,0.55,2447.2,2446.8,8.17384]
[1730734358319,0.55,2447.2,2446.8,4.08688]
[1730734359083,0.55,2447.2,2446.8,8.17376]
[1730734360015,0.55,2447.2,2446.8,4.08688]
[1730734360220,4.08588,2447.5,2446.9,4.31976235]
[1730734360419,4.08588,2447.5,2446.8,4.08692]
[1730734360716,4.08588,2447.5,2447.0,4.08661]
[1730734361077,4.08588,2447.5,2447.0,8.17311]
[1730734361725,4.08588,2447.5,2447.0,4.08655]
[1730734361920,4.63598,2447.4,2446.9,4.08677]
[1730734362862,4.08614,2447.3,2446.8,4.08686]
[1730734363158,0.55,2447.4,2446.9,4.31966487]
[1730734363342,0.55,2447.4,2446.9,4.08665]
[1730734363750,0.55,2447.4,2447.0,4.08661]
[1730734363919,6.15230924,2447.4,2446.9,4.08679]
[1730734364322,2.06631924,2447.4,2446.9,4.08679]
[1730734364665,2.06631924,2447.4,2446.9,8.1735]
[1730734364957,2.06631924,2447.4,2446.9,4.08671]
[1730734365120,2.06631924,2447.4,2447.0,4.08656]
[1730734365320,2.06631924,2447.4,2447.1,4.08638]
[1730734365521,5.37931314,2447.6,2447.0,4.08656]
[1730734365522,4.63588,2447.5,2447.0,4.08656]
[1730734365823,0.55,2447.5,2447.1,4.08646]
[1730734366328,4.6358,2447.5,2447.0,4.08654]
[1730734366735,0.55,2447.3,2446.9,4.08679]
[1730734366925,0.786,2447.2,2446.9,4.08679]
[1730734367627,1.328197,2447.2,2446.7,4.08698]
[1730734367842,9.32824658,2447.2,2446.7,4.08698]
[1730734368868,9.32824658,2447.2,2446.7,8.17404]
[1730734369289,9.32824658,2447.2,2446.7,4.08698]
[1730734369650,9.32824658,2447.2,2446.7,8.17403]
[1730734369860,1.39644666,2447.1,2446.7,4.08698]
[1730734370170,1.39644666,2447.1,2446.5,8.17473]
[1730734370171,4.6367,2447.0,2446.5,8.17473]
[1730734371048,0.55,2447.0,2446.5,4.08736]
[1730734371252,0.55,2446.7,2446.3,4.08769]
[1730734371499,0.55,2446.7,2446.1,4.86554]
[1730734371790,4.63722,2446.7,2446.2,4.32080698]
[1730734371945,4.63722,2446.7,2446.1,4.86554]
[1730734371946,4.08733,2446.6,2446.1,4.08804]
[1730734372154,4.88495,2446.4,2446.0,4.08829]
[1730734372352,0.897251,2446.3,2446.0,4.08829]
[1730734372657,0.897251,2446.3,2446.0,4.08822]
[1730734372861,0.897251,2446.3,2445.9,4.08845]
[1730734373467,0.897251,2446.3,2446.0,4.08818]
[1730734373686,0.7973,2446.4,2446.0,4.08818]
[1730734374291,4.63789,2446.3,2445.9,4.08845]
[1730734374454,0.55,2446.3,2445.9,4.08845]
[1730734374664,4.63785,2446.3,2445.9,4.08845]
[1730734375090,0.55,2446.3,2445.9,4.08839]
[1730734375314,0.8058,2446.7,2446.2,4.88803]
[1730734375457,4.0874,2446.6,2446.1,4.08805]
[1730734375652,4.0873,2446.6,2445.9,4.08844]
[1730734375954,0.8127,2446.2,2445.9,4.08844]
[1730734376759,0.8127,2446.2,2445.8,4.08862]
[1730734376964,0.8127,2446.2,2445.9,4.08844]
[1730734379091,0.8127,2446.2,2445.9,4.08838]
[1730734379295,0.8127,2446.2,2445.9,8.17678]
[1730734379897,0.8127,2446.2,2446.0,4.08818]
[1730734380067,0.8127,2446.2,2445.5,7.12357133]
[1730734380272,0.8127,2446.2,2446.0,4.08816]
[1730734380487,0.55,2446.4,2446.0,4.08816]
[1730734380784,0.7681,2446.6,2446.3,4.08765]
[1730734381166,0.7681,2446.6,2446.4,4.08763]
[1730734381368,0.7681,2446.6,2446.1,4.08802]
[1730734381576,4.85542,2446.6,2446.2,4.08786]
[1730734382305,0.55,2446.5,2446.2,4.08786]
[1730734383598,0.55,2446.5,2446.3,4.08767]
[1730734384171,0.55,2446.8,2446.4,4.08763]
[1730734384486,0.55,2446.6,2446.3,4.08773]
[1730734384967,4.08718,2446.7,2446.3,4.08773]
[1730734385166,5.0914809,2446.8,2446.4,4.08762]
[1730734385384,0.55,2446.7,2446.4,4.08762]
[1730734385592,0.55,2446.7,2446.3,4.08773]
[1730734385795,5.27931809,2446.7,2446.3,4.08773]
[1730734386107,5.27931809,2446.7,2446.4,4.08756]
[1730734386108,1.19215809,2446.7,2446.4,4.08756]
[1730734386280,1.0044809,2446.8,2446.5,4.08746]
[1730734386482,0.55,2446.8,2446.6,4.08728]
[1730734386898,0.8116,2447.1,2446.7,4.08713]
[1730734387206,0.542197,2447.2,2446.9,4.08676]
[1730734387772,0.542197,2447.2,2446.7,4.88509]
[1730734387994,4.628557,2447.2,2446.8,4.08689]
[1730734389976,8.714967,2447.2,2446.7,4.88509]
[1730734390174,8.714947,2447.2,2446.7,4.88509]
[1730734390494,4.08699,2446.8,2446.1,3.8328]
[1730734390691,4.08699,2446.8,2446.4,4.08756]
[1730734390868,4.08699,2446.8,2446.5,0.23322677]
[1730734391083,4.08699,2446.8,2446.4,4.08756]
[1730734391281,4.08699,2446.8,2446.5,0.23324482]
[1730734391504,4.08699,2446.8,2446.4,4.08756]
[1730734391505,4.087,2446.8,2446.4,4.08749]
[1730734391902,4.08681,2446.9,2446.5,4.32063759]
[1730734392098,4.08681,2446.9,2446.5,4.08737]
[1730734392709,4.08681,2446.9,2446.6,0.23329896]
[1730734392908,8.1737,2446.9,2446.5,4.08737]
[1730734393149,8.1737,2446.9,2446.6,0.23329774]
[1730734393448,0.55,2446.9,2446.6,4.08729]
[1730734393653,4.08638,2447.2,2446.8,4.08692]
[1730734394313,4.8613,2447.3,2446.9,4.08672]
[1730734394727,4.86124,2447.3,2446.9,4.08672]
[1730734394947,3.91473127,2447.5,2447.0,4.08663]
[1730734395130,2.12732716,2447.7,2446.9,0.7706]
[1730734395131,2.50001244,2447.7,2446.9,0.7706]
[1730734395342,2.50001244,2447.7,2447.4,4.08588]
[1730734395343,0.8058,2447.7,2447.4,4.08588]
[1730734395559,0.8058,2447.7,2447.5,4.08573]
[1730734395751,0.7998,2447.9,2447.5,4.08573]
[1730734395949,4.0853,2447.8,2447.4,4.08588]
[1730734396158,8.00055127,2447.5,2447.0,0.7827]
[1730734396485,4.88534,2447.7,2446.8,1.15605424]
[1730734396785,4.88534,2447.7,2447.1,4.0863]
[1730734396786,0.55,2447.6,2447.1,4.0863]
[1730734396939,4.08588,2447.5,2447.1,4.0863]
[1730734397327,4.08588,2447.5,2447.0,4.08653]
[1730734397660,4.08588,2447.5,2446.9,4.08672]
[1730734397661,4.63606,2447.4,2446.9,4.08672]
[1730734397865,4.63606,2447.4,2446.8,4.86966]
[1730734397866,4.08634,2447.2,2446.8,4.08696]
[1730734398033,4.63637,2447.2,2446.9,0.23328016]
[1730734398222,4.63637,2447.2,2446.8,4.46012611]
[1730734398542,4.08647,2447.1,2446.7,4.46037611]
[1730734398868,4.08647,2447.1,2446.8,0.23325574]
[1730734399030,4.08647,2447.1,2446.7,4.08711]
[1730734399233,4.08647,2447.1,2446.8,0.23324912]
[1730734399432,5.037344,2447.1,2446.7,4.08711]
[1730734399735,0.950874,2447.1,2446.7,4.08704]
[1730734399927,5.037374,2447.1,2446.7,4.08704]
[1730734400439,4.08637,2447.2,2446.8,4.08688]
[1730734400768,4.08649,2447.1,2446.6,4.08729]
[1730734400929,0.7859,2447.3,2446.7,0.23322399]
[1730734401273,4.08722,2446.7,2446.3,4.08779]
[1730734401427,0.767,2446.8,2446.4,4.08753]
[1730734401857,4.85405,2446.8,2446.4,4.08753]
[1730734402176,5.91756424,2446.8,2446.4,4.08753]
[1730734402472,1.83051424,2446.8,2446.1,4.08806]
[1730734402627,4.08722,2446.7,2446.2,4.32116224]
[1730734402828,4.08722,2446.7,2446.3,0.23327224]
[1730734403034,4.0873,2446.6,2446.2,4.08789]
[1730734403234,4.0873,2446.6,2446.3,0.23327275]
[1730734403464,5.08780342,2446.6,2446.1,4.08806]
[1730734403661,5.08780342,2446.6,2446.2,0.23329443]
[1730734403837,5.08780342,2446.6,2446.1,8.17611]
[1730734403838,5.08780342,2446.6,2446.3,0.23329443]
[1730734404034,5.08780342,2446.6,2446.1,4.08805]
[1730734404273,5.08780342,2446.6,2446.2,0.23330246]
[1730734404437,5.08780342,2446.6,2446.3,0.23330246]
[1730734404633,0.8173,2446.4,2446.0,0.3733018]
[1730734404835,4.90501,2446.4,2446.1,0.23331551]
[1730734405084,4.90501,2446.4,2445.9,4.46171267]
[1730734405270,4.0878,2446.3,2446.0,0.23334594]
[1730734405451,0.8173,2446.4,2445.8,4.46193267]
[1730734405452,4.90501,2446.4,2446.1,0.23333152]
[1730734405779,4.90501,2446.4,2445.9,4.46170267]
[1730734405780,4.08782,2446.3,2445.9,4.08838]
[1730734405984,10.37527536,2446.4,2446.0,0.23334184]
[1730734406157,4.08785,2446.3,2445.9,4.08838]
[1730734406344,4.08785,2446.3,2446.0,0.23335648]
[1730734406654,6.28743536,2446.4,2445.9,4.08835]
[1730734406862,6.28743536,2446.4,2446.0,0.23335223]
[1730734407154,6.28743536,2446.4,2445.9,4.08835]
[1730734407378,6.28743536,2446.4,2446.0,0.23336587]
[1730734407544,6.28743536,2446.4,2445.9,4.08835]
[1730734407877,6.28743536,2446.4,2446.0,0.23334628]
[1730734408186,6.28743536,2446.4,2445.9,8.17673]
[1730734408395,6.28743536,2446.4,2446.0,0.23334499]
[1730734408544,6.28743536,2446.4,2445.9,4.08835]
[1730734408745,6.28743536,2446.4,2446.0,0.23334603]
[1730734409050,6.28743536,2446.4,2445.9,4.08835]
[1730734409400,6.28743536,2446.4,2446.0,0.23336456]
[1730734409689,2.19978536,2446.4,2446.0,4.08816]
[1730734409873,5.78102244,2446.9,2446.5,4.08746]
[1730734410043,5.78102244,2446.9,2446.3,4.08766]
[1730734410044,4.08699,2446.8,2446.3,4.08766]
[1730734410245,4.88737213,2446.7,2446.3,4.08766]
[1730734410690,8.97463213,2446.7,2446.2,4.0879]
[1730734411004,4.88737213,2446.7,2446.3,4.08779]
[1730734411208,8.97459213,2446.7,2446.2,4.0879]
[1730734411495,4.88737213,2446.7,2446.2,8.17578]
[1730734411908,4.88737213,2446.7,2446.3,0.23334983]
[1730734412105,1.69421244,2446.9,2446.0,0.7512]
[1730734412400,4.87045,2447.0,2446.6,4.08728]
[1730734412607,0.7838,2447.0,2446.6,4.08728]
[1730734412812,4.87052,2447.0,2446.6,4.08728]
[1730734412982,6.56473244,2447.0,2446.6,4.08728]
[1730734413178,8.00154127,2446.9,2446.2,4.08785]
[1730734413406,4.08706,2446.8,2446.3,4.32104325]
[1730734413608,4.08706,2446.8,2446.4,0.23334325]
[1730734413811,4.08706,2446.8,2446.3,4.0877]
[1730734413812,4.08715,2446.7,2446.3,4.0877]
[1730734414107,4.08715,2446.7,2446.4,0.23334954]
[1730734414314,5.29604413,2446.7,2446.3,4.0877]
[1730734415299,5.29604413,2446.7,2446.4,0.23334806]
[1730734415614,1.20889413,2446.7,2446.3,4.0877]
[1730734415782,4.08715,2446.7,2446.3,4.0877]
[1730734415989,0.55,2446.8,2446.4,4.0876]
[1730734416599,2.47801244,2447.0,2446.5,4.08738]
[1730734416818,0.7838,2447.0,2446.6,4.08721]
[1730734417111,6.56473244,2447.0,2446.5,4.08745]
[1730734417419,6.14862733,2447.0,2446.5,4.08745]
[1730734417724,6.14862733,2447.0,2445.7,4.08867]
[1730734417725,0.7664,2446.1,2445.7,4.08867]
[1730734417872,0.7664,2446.1,2445.8,0.23341223]
[1730734418071,0.7664,2446.1,2445.8,4.0886]
[1730734418277,0.7664,2446.1,2445.7,4.0887]
[1730734418584,4.85454,2446.1,2445.7,4.0887]
[1730734418774,0.7664,2446.1,2445.8,4.08861]
[1730734418970,0.7664,2446.1,2445.5,3.33397133]
[1730734419176,0.7664,2446.1,2445.7,4.08877]
[1730734419373,0.7664,2446.1,2445.8,0.23332014]
[1730734419597,0.7664,2446.1,2445.9,4.08837]
[1730734419799,0.7916,2446.3,2445.9,4.08837]
[1730734419988,4.87947,2446.3,2445.8,4.08858]
[1730734420186,0.7916,2446.3,2446.0,4.08823]
[1730734420478,0.7916,2446.3,2445.9,4.08845]
[1730734420680,6.24560724,2446.3,2445.8,4.08856]
[1730734421422,6.24550724,2446.3,2445.9,4.08846]
[1730734422378,4.8794,2446.3,2445.9,4.08846]
[1730734422979,4.08767,2446.4,2446.0,4.0883]
[1730734423378,4.90941,2446.5,2446.0,4.0883]
[1730734423581,0.8219,2446.5,2446.1,4.08805]
[1730734423778,4.90947,2446.5,2446.1,4.08805]
[1730734424594,0.8219,2446.5,2446.1,8.17609]
[1730734424797,0.8219,2446.5,2446.2,4.08796]
[1730734424990,4.90939,2446.5,2446.1,4.08804]
[1730734425191,4.90939,2446.5,2446.2,4.08797]
[1730734425192,0.8219,2446.5,2446.2,4.08797]
[1730734425659,8.17692,2446.0,2445.6,0.7867]
[1730734425960,4.0888,2445.8,2445.4,0.8471162]
[1730734426311,4.08847,2445.9,2445.4,0.8471162]
[1730734426546,4.08872,2445.8,2445.4,0.8471162]
[1730734426769,4.08872,2445.8,2445.5,0.23332903]
[1730734426958,4.0888,2445.7,2445.4,0.0604162]
[1730734427319,4.08899,2445.6,2445.4,0.0604162]
[1730734427938,6.288519,2445.5,2445.4,0.0604162]
[1730734428146,6.278519,2445.5,2445.4,0.0604162]
[1730734428952,6.288519,2445.5,2445.4,0.0604162]
[1730734432254,6.278519,2445.5,2445.4,0.0604162]
[1730734438564,6.288519,2445.5,2445.4,0.0604162]
[1730734438873,14.288519,2445.5,2445.4,0.0604162]
[1730734441787,14.298519,2445.5,2445.4,0.0604162]
[1730734442277,14.298519,2445.5,2445.4,6.2e-06]
[1730734442852,14.298519,2445.5,2444.2,0.0604162]
[1730734442853,4.64115,2444.3,2444.2,0.0604162]
[1730734443176,4.09099,2444.4,2444.2,0.0604162]
[1730734443375,0.55,2444.5,2444.2,4.1517062]
[1730734443549,0.8134,2444.8,2444.3,4.09108]
[1730734443749,4.0903,2444.9,2444.4,4.09087]
[1730734443750,3.55,2444.9,2444.4,4.09087]
[1730734444083,0.8134,2445.1,2444.6,4.09063]
[1730734444242,4.09008,2445.0,2444.7,0.8329]
[1730734444438,4.09016,2444.9,2444.7,0.8329]
[1730734445058,4.09001,2445.0,2444.7,0.8329]
[1730734445448,0.55,2445.0,2444.7,0.8329]
[1730734445653,4.09004,2445.0,2444.7,0.8329]
[1730734445851,3.0,2445.1,2444.7,0.8329]
[1730734446082,7.08991,2445.1,2444.7,0.8329]
[1730734446251,7.08983,2445.1,2444.7,0.8329]
[1730734447097,11.17976,2445.1,2444.7,4.92337]
[1730734447577,4.08998,2445.0,2444.7,0.8329]
[1730734448389,6.37401685,2445.4,2444.8,0.23275814]
[1730734448390,4.08944,2445.4,2444.8,0.23275814]
[1730734448605,4.08975,2445.2,2444.8,4.0903]
[1730734448768,4.09006,2445.0,2444.7,0.8329]
[1730734448954,4.08996,2445.1,2444.7,0.8329]
[1730734449155,3.91473127,2445.2,2444.8,4.09031]
[1730734449156,4.08971,2445.2,2444.8,4.09031]
[1730734449385,4.08971,2445.2,2444.9,0.23278712]
[1730734449555,4.0899,2445.1,2444.7,4.92337]
[1730734449756,4.0899,2445.1,2444.8,0.23279741]
[1730734449974,4.0899,2445.1,2444.7,4.92337]
[1730734450314,4.0895,2445.3,2444.9,4.09009]
[1730734450597,8.17906,2445.3,2444.9,4.09009]
[1730734450808,4.08965,2445.2,2444.7,0.8329]
[1730734450956,4.0899,2445.1,2444.8,0.23286332]
[1730734451156,4.09003,2445.0,2444.7,0.8329]
[1730734451401,8.17981,2445.1,2444.8,0.23292958]
[1730734451701,4.09015,2444.9,2444.7,0.8329]
[1730734451860,4.09031,2444.8,2444.4,4.09095]
[1730734452067,4.09053,2444.7,2444.5,1.36296311]
[1730734452290,8.1807,2444.8,2444.6,0.23294224]
[1730734452492,8.1807,2444.8,2444.5,0.7573]
[1730734452801,8.18077,2444.8,2444.6,0.2330465]
[1730734452976,4.09048,2444.7,2444.3,4.09105]